fUST/lending_fUST_20250227
["ID","MTS","AMOUNT","RATE_DAILY","PERIOD"]
[354701310,1740628262132,-940.96,0.00047397,120]
[354701311,1740628262143,-500.0,0.00047397,120]
[354701312,1740628262152,-500.0,0.00047397,120]
[354701313,1740628262161,-932.99,0.00047397,120]
[354701314,1740628262170,-3421.28,0.00047397,120]
[354701315,1740628262180,-1586.05,0.00047397,120]
[354701316,1740628262189,-500.0,0.00047397,120]
[354701317,1740628262199,-500.0,0.00047397,120]
[354701318,1740628262208,-500.0,0.00047397,120]
[354701319,1740628262218,-500.0,0.00047397,120]
[354701320,1740628262227,-681.54,0.00047397,120]
[354701321,1740628262237,-2023.72,0.00047397,120]
[354701322,1740628262247,-922.98,0.00047397,120]
[354701323,1740628262258,-500.0,0.00047397,120]
[354701324,1740628262267,-941.41,0.00047397,120]
[354701325,1740628262276,-500.0,0.00047397,120]
[354701326,1740628262286,-577.23,0.00047397,120]
[354701327,1740628262296,-500.0,0.00047397,120]
[354701328,1740628262307,-507.69636881,0.00047397,120]
[354701329,1740628262316,-503.15,0.00047397,120]
[354701330,1740628262325,-1260.11,0.00047397,120]
[354701331,1740628262335,-28610.81,0.00047397,6]
[354701332,1740628262345,-500.0,0.00047397,120]
[354701333,1740628262354,-500.0,0.00047397,120]
[354701334,1740628262363,-2143.37,0.00047397,120]
[354701335,1740628262373,-40083.14,0.00047397,120]
[354701336,1740628262383,-18029.97,0.00047397,120]
[354701337,1740628262394,-7683.19,0.00047397,120]
[354701338,1740628262405,-500.0,0.00047397,120]
[354701339,1740628262415,-483.15457361,0.00047397,120]
[354701340,1740628262424,-2604.17372545,0.000475,30]
[354701341,1740628262434,-1802.0,0.00047671,30]
[354701342,1740628262443,-500.0,0.00047671,30]
[354701343,1740628262452,-203.79654028,0.00047671,30]
[354701344,1740628262461,-150.35,0.00047671,30]
[354701345,1740628262471,-774.57841029,0.00047671,30]
[354701346,1740628262480,-500.0,0.00047671,30]
[354701347,1740628262489,-500.0,0.00047671,30]
[354701348,1740628262498,-150.35,0.00047671,30]
[354701349,1740628262507,-500.0,0.00047671,120]
[354701350,1740628262516,-593.15,0.00047671,120]
[354701351,1740628262525,-500.0,0.00047671,120]
[354701352,1740628262535,-500.0,0.00047671,120]
[354701353,1740628262544,-570.65,0.00047671,120]
[354701354,1740628262553,-780.41,0.00047671,120]
[354701355,1740628262562,-566.38,0.00047671,120]
[354701356,1740628262571,-500.0,0.00047671,120]
[354701357,1740628262580,-500.0,0.00047671,120]
[354701358,1740628262589,-797.05,0.00047671,120]
[354701359,1740628262598,-500.0,0.00047671,120]
[354701360,1740628262608,-500.0,0.00047671,120]
[354701361,1740628262617,-500.0,0.00047671,120]
[354701362,1740628262626,-500.0,0.00047671,120]
[354701363,1740628262635,-500.0,0.00047671,120]
[354701364,1740628262644,-768.39,0.00047671,120]
[354701365,1740628262653,-500.0,0.00047671,120]
[354701366,1740628262663,-827.32,0.00047671,120]
[354701367,1740628262774,-1418.83,0.00047671,120]
[354701368,1740628262787,-500.0,0.00047671,120]
[354701369,1740628262796,-852.35,0.00047671,120]
[354701370,1740628262806,-208.57798738,0.00047671,120]
[354701371,1740628262815,-500.0,0.00047671,120]
[354701372,1740628262826,-500.0,0.00047671,120]
[354701373,1740628262835,-500.0,0.00047671,120]
[354701374,1740628262847,-500.0,0.00047671,120]
[354701375,1740628262859,-560.69,0.00047671,120]
[354701376,1740628262869,-500.0,0.00047671,120]
[354701377,1740628262879,-949.2,0.00047671,120]
[354701378,1740628262889,-500.0,0.00047671,120]
[354701379,1740628262899,-524.86,0.00047671,120]
[354701380,1740628262909,-500.0,0.00047671,120]
[354701381,1740628262918,-500.0,0.00047671,120]
[354701382,1740628262928,-500.0,0.00047671,120]
[354701383,1740628262937,-934.32,0.00047671,120]
[354701384,1740628262947,-958.18,0.00047671,120]
[354701385,1740628262957,-572.69,0.00047671,120]
[354701386,1740628262966,-632.92,0.00047671,120]
[354701387,1740628262975,-1164.98,0.00047671,120]
[354701388,1740628262985,-710.62,0.00047671,120]
[354701389,1740628262994,-1692.42,0.00047671,120]
[354701390,1740628263004,-500.0,0.00047671,120]
[354701391,1740628263013,-854.19,0.00047671,120]
[354701392,1740628263022,-500.0,0.00047671,120]
[354701393,1740628263032,-441.70924259,0.00047671,120]
[354701394,1740628263042,-500.0,0.00047671,120]
[354701395,1740628263052,-1073.14,0.00047671,120]
[354701396,1740628263063,-813.29,0.00047671,120]
[354701397,1740628263072,-500.0,0.00047671,120]
[354701398,1740628263082,-500.0,0.00047671,120]
[354701399,1740628263093,-785.56,0.00047671,120]
[354701400,1740628263102,-927.55,0.00047671,120]
[354701401,1740628263113,-1218.01,0.00047671,120]
[354701402,1740628263122,-500.0,0.00047671,120]
[354701403,1740628263132,-822.03,0.00047671,120]
[354701404,1740628263141,-751.57,0.00047671,120]
[354701405,1740628263151,-500.0,0.00047671,120]
[354701406,1740628263161,-897.58,0.00047671,120]
[354701407,1740628263171,-1602.4,0.00047671,120]
[354701408,1740628263180,-755.76,0.00047671,120]
[354701409,1740628263190,-2936.95,0.00047671,120]
[354701410,1740628263199,-500.0,0.00047671,120]
[354701411,1740628263209,-500.0,0.00047671,120]
[354701412,1740628263219,-500.0,0.00047671,120]
[354701413,1740628263228,-445.42433287,0.00047671,120]
[354701414,1740628263238,-500.0,0.00047671,120]
[354701415,1740628263248,-500.0,0.00047671,120]
[354701416,1740628263257,-500.0,0.00047671,120]
[354701417,1740628263267,-690.81,0.00047671,120]
[354701418,1740628263276,-381.23246238,0.00047671,120]
[354701419,1740628263285,-2038.67,0.00047671,120]
[354701420,1740628263294,-500.0,0.00047671,120]
[354701421,1740628263303,-500.0,0.00047671,120]
[354701422,1740628263313,-500.0,0.00047671,120]
[354701423,1740628263322,-3236.64,0.00047671,120]
[354701424,1740628263331,-500.0,0.00047671,120]
[354701425,1740628263340,-500.0,0.00047671,120]
[354701426,1740628263350,-300.0,0.00047671,120]
[354701427,1740628263360,-969.61,0.00047671,120]
[354701428,1740628263369,-543.74,0.00047671,120]
[354701429,1740628263379,-2040.43,0.00047671,120]
[354701430,1740628263388,-500.0,0.00047671,120]
[354701431,1740628263397,-658.16,0.00047671,120]
[354701432,1740628263406,-3045.52,0.00047671,120]
[354701433,1740628263416,-584.76,0.00047671,120]
[354701434,1740628263425,-553.3441229,0.00047671,120]
[354701435,1740628263434,-500.0,0.00047671,120]
[354701436,1740628263444,-500.0,0.00047671,120]
[354701437,1740628263453,-4367.33,0.00047671,120]
[354701438,1740628263463,-500.0,0.00047671,120]
[354701439,1740628263472,-500.0,0.00047671,120]
[354701440,1740628263482,-1365.33,0.00047671,120]
[354701441,1740628263491,-1534.47,0.00047671,120]
[354701442,1740628263501,-1512.89,0.00047671,120]
[354701443,1740628263510,-500.0,0.00047671,120]
[354701444,1740628263519,-689.11,0.00047671,120]
[354701445,1740628263529,-877.5,0.00047671,120]
[354701446,1740628263539,-2559.48,0.00047671,120]
[354701447,1740628263549,-500.0,0.00047671,120]
[354701448,1740628263558,-685.48,0.00047671,120]
[354701449,1740628263568,-715.45,0.00047671,120]
[354701450,1740628263577,-1386.85,0.00047671,120]
[354701451,1740628263586,-500.0,0.00047671,120]
[354701452,1740628263599,-624.46,0.00047671,120]
[354701453,1740628263608,-627.78,0.00047671,120]
[354701454,1740628263618,-725.02,0.00047671,120]
[354701455,1740628263627,-1947.97,0.00047671,120]
[354701456,1740628263637,-500.0,0.00047671,120]
[354701457,1740628263646,-1773.59,0.00047671,120]
[354701458,1740628263656,-500.0,0.00047671,120]
[354701459,1740628263665,-1783.55,0.00047671,120]
[354701460,1740628263674,-748.91,0.00047671,120]
[354701461,1740628263683,-500.0,0.00047671,120]
[354701462,1740628263692,-3613.6,0.00047671,120]
[354701463,1740628263701,-500.0,0.00047671,120]
[354701464,1740628263710,-500.0,0.00047671,120]
[354701465,1740628263720,-881.2,0.00047671,120]
[354701466,1740628263729,-1733.96,0.00047671,120]
[354701467,1740628263738,-500.0,0.00047671,120]
[354701468,1740628263748,-686.53,0.00047671,120]
[354701469,1740628263758,-500.0,0.00047671,120]
[354701470,1740628263769,-500.0,0.00047671,120]
[354701471,1740628263779,-500.0,0.00047671,30]
[354701472,1740628263789,-524.21,0.00047671,120]
[354701473,1740628263798,-1543.48,0.00047671,120]
[354701474,1740628263807,-500.0,0.00047671,120]
[354701475,1740628263818,-524.27,0.00047671,120]
[354701476,1740628263828,-500.0,0.00047671,120]
[354701477,1740628263837,-500.0,0.00047671,120]
[354701478,1740628263849,-1270.7,0.00047671,120]
[354701479,1740628263859,-1474.69,0.00047671,120]
[354701480,1740628263869,-500.0,0.00047671,120]
[354701481,1740628263879,-772.19,0.00047671,120]
[354701482,1740628263889,-823.67,0.00047671,120]
[354701483,1740628263898,-500.0,0.00047671,120]
[354701484,1740628263907,-1328.16,0.00047671,120]
[354701485,1740628263916,-151.5,0.00047671,120]
[354701486,1740628263925,-2621.87,0.00047671,120]
[354701487,1740628263935,-2850.7,0.00047671,120]
[354701488,1740628263945,-500.0,0.00047671,120]
[354701489,1740628263954,-2280.7,0.00047671,120]
[354701490,1740628263963,-1028.4,0.00047671,120]
[354701491,1740628263973,-947.89,0.00047671,120]
[354701492,1740628263982,-645.66,0.00047671,120]
[354701493,1740628263992,-500.0,0.00047671,120]
[354701494,1740628264001,-806.86,0.00047671,120]
[354701495,1740628264010,-500.0,0.00047671,120]
[354701496,1740628264019,-868.62,0.00047671,120]
[354701497,1740628264029,-500.0,0.00047671,120]
[354701498,1740628264038,-434.03831374,0.00047671,120]
[354701499,1740628264048,-500.0,0.00047671,120]
[354701500,1740628264058,-500.0,0.00047671,120]
[354701501,1740628264068,-741.48,0.00047671,120]
[354701502,1740628264077,-500.0,0.00047671,120]
[354701503,1740628264087,-525.65,0.00047671,120]
[354701504,1740628264100,-598.57,0.00047671,120]
[354701505,1740628264110,-691.43,0.00047671,120]
[354701506,1740628264119,-1395.46,0.00047671,120]
[354701507,1740628264130,-503.43908834,0.00047671,120]
[354701508,1740628264139,-500.0,0.00047671,120]
[354701509,1740628264148,-500.0,0.00047671,120]
[354701510,1740628264158,-931.39,0.00047671,120]
[354701511,1740628264168,-628.55,0.00047671,120]
[354701512,1740628264178,-500.0,0.00047671,120]
[354701513,1740628264187,-852.74,0.00047671,120]
[354701514,1740628264197,-3144.25,0.00047671,120]
[354701515,1740628264207,-500.0,0.00047671,120]
[354701516,1740628264216,-500.0,0.00047671,120]
[354701517,1740628264225,-1407.54,0.00047671,120]
[354701518,1740628264234,-500.0,0.00047671,120]
[354701519,1740628264244,-750.76,0.00047671,120]
[354701520,1740628264253,-3592.26,0.00047671,120]
[354701521,1740628264262,-500.0,0.00047671,120]
[354701522,1740628264271,-500.0,0.00047671,120]
[354701523,1740628264281,-1094.94,0.00047671,120]
[354701524,1740628264290,-1662.16,0.00047671,120]
[354701525,1740628264299,-500.0,0.00047671,120]
[354701526,1740628264309,-500.0,0.00047671,120]
[354701527,1740628264318,-3984.43,0.00047671,120]
[354701528,1740628264327,-500.0,0.00047671,45]
[354701529,1740628264336,-2259.95,0.00047671,120]
[354701530,1740628264349,-556.29,0.00047671,120]
[354701531,1740628264359,-500.0,0.00047671,120]
[354701532,1740628264368,-695.37,0.00047671,120]
[354701533,1740628264379,-8295.33,0.00047671,120]
[354701534,1740628264388,-500.0,0.00047671,120]
[354701535,1740628264398,-500.0,0.00047671,120]
[354701536,1740628264408,-500.0,0.00047671,120]
[354701537,1740628264418,-200.0,0.00047671,7]
[354701538,1740628264428,-500.0,0.00047671,120]
[354701539,1740628264437,-8301.02,0.00047671,120]
[354701540,1740628264447,-3138.87,0.00047671,120]
[354701541,1740628264456,-10308.78,0.00047671,120]
[354701542,1740628264466,-695.35,0.00047671,120]
[354701543,1740628264475,-500.0,0.00047671,120]
[354701544,1740628264484,-865.92,0.00047671,120]
[354701545,1740628264494,-643.09,0.00047671,120]
[354701546,1740628264503,-683.42,0.00047671,120]
[354701547,1740628264512,-613.33,0.00047671,120]
[354701548,1740628264521,-500.0,0.00047671,120]
[354701549,1740628264531,-1232.06,0.00047671,120]
[354701550,1740628264540,-1229.79,0.00047671,120]
[354701551,1740628264550,-500.0,0.00047671,120]
[354701552,1740628264559,-512.64298047,0.00047671,120]
[354701553,1740628264569,-500.0,0.00047671,120]
[354701554,1740628264579,-500.0,0.00047671,120]
[354701555,1740628264588,-500.0,0.00047671,120]
[354701556,1740628264600,-500.0,0.00047671,120]
[354701557,1740628264610,-2522.78,0.00047671,120]
[354701558,1740628264620,-4090.11,0.00047671,120]
[354701559,1740628264735,-500.0,0.00047671,120]
[354701560,1740628264744,-867.06,0.00047671,120]
[354701561,1740628264754,-34808.5,0.00047671,120]
[354701562,1740628264764,-687.85,0.00047671,120]
[354701563,1740628264774,-2334.79,0.00047671,120]
[354701564,1740628264786,-1614.21,0.00047671,120]
[354701565,1740628264795,-764.11,0.00047671,30]
[354701566,1740628264804,-500.0,0.00047671,120]
[354701567,1740628264814,-500.0,0.00047671,120]
[354701568,1740628264824,-500.0,0.00047671,120]
[354701569,1740628264837,-2464.65,0.00047671,120]
[354701570,1740628264852,-500.0,0.00047671,120]
[354701571,1740628264865,-1450.75,0.00047671,120]
[354701572,1740628264875,-2595.68,0.00047671,120]
[354701573,1740628264884,-1197.24,0.00047671,120]
[354701574,1740628264894,-13048.53,0.00047671,3]
[354701575,1740628264903,-153542.56,0.00047671,7]
[354701576,1740628264914,-500.0,0.00047671,120]
[354701577,1740628264923,-532.57,0.00047671,120]
[354701578,1740628264933,-500.0,0.00047671,120]
[354701579,1740628264942,-603.2,0.00047671,120]
[354701580,1740628264951,-958.0,0.00047671,120]
[354701581,1740628264960,-1104.37,0.00047671,120]
[354701582,1740628264970,-500.0,0.00047671,120]
[354701583,1740628264979,-2839.71,0.00047671,120]
[354701584,1740628264989,-5470.17,0.00047671,120]
[354701585,1740628264998,-7242.19,0.00047671,120]
[354701586,1740628265009,-500.0,0.00047671,120]
[354701587,1740628265019,-500.0,0.00047671,120]
[354701588,1740628265029,-2743.43,0.00047671,120]
[354701589,1740628265039,-527.89,0.00047671,120]
[354701590,1740628265048,-996.57,0.00047671,120]
[354701591,1740628265059,-1000.0,0.00047671,2]
[354701592,1740628265069,-500.0,0.00047671,120]
[354701593,1740628265079,-1728.95,0.00047671,120]
[354701594,1740628265088,-646.95,0.00047671,120]
[354701595,1740628265100,-1688.72,0.00047671,120]
[354701596,1740628265110,-2120.19,0.00047671,120]
[354701597,1740628265119,-500.0,0.00047671,120]
[354701598,1740628265129,-1964.78,0.00047671,120]
[354701599,1740628265138,-555.59,0.00047671,120]
[354701600,1740628265147,-808.9,0.00047671,120]
[354701601,1740628265157,-500.0,0.00047671,120]
[354701602,1740628265166,-1610.4,0.00047671,120]
[354701603,1740628265177,-500.0,0.00047671,120]
[354701604,1740628265188,-500.0,0.00047671,120]
[354701605,1740628265200,-1101.6,0.00047671,120]
[354701606,1740628265211,-810.57,0.00047671,120]
[354701607,1740628265221,-6705.2,0.00047671,120]
[354701608,1740628265231,-1676.08,0.00047671,120]
[354701609,1740628265240,-555.96,0.00047671,120]
[354701610,1740628265250,-901.17,0.00047671,120]
[354701611,1740628265260,-4004.22,0.00047671,120]
[354701612,1740628265269,-774.83,0.00047671,120]
[354701613,1740628265278,-1652.01,0.00047671,120]
[354701614,1740628265287,-500.0,0.00047671,120]
[354701615,1740628265297,-500.0,0.00047671,120]
[354701616,1740628265306,-754.66,0.00047671,120]
[354701617,1740628265315,-2847.41,0.00047671,120]
[354701618,1740628265324,-4146.58,0.00047671,120]
[354701619,1740628265334,-909.96,0.00047671,120]
[354701620,1740628265345,-953.72,0.00047671,120]
[354701621,1740628265355,-500.0,0.00047671,21]
[354701622,1740628265365,-500.0,0.00047671,120]
[354701623,1740628265374,-2180.11,0.00047671,120]
[354701624,1740628265385,-500.0,0.00047671,120]
[354701625,1740628265394,-500.0,0.00047671,120]
[354701626,1740628265404,-9224.05,0.00047671,120]
[354701627,1740628265416,-500.0,0.00047671,120]
[354701628,1740628265425,-940.96,0.00047671,120]
[354701629,1740628265435,-500.0,0.00047671,120]
[354701630,1740628265444,-500.0,0.00047671,120]
[354701631,1740628265454,-932.99,0.00047671,120]
[354701632,1740628265463,-3421.28,0.00047671,120]
[354701633,1740628265472,-1586.05,0.00047671,120]
[354701634,1740628265481,-500.0,0.00047671,120]
[354701635,1740628265490,-500.0,0.00047671,120]
[354701636,1740628265500,-500.0,0.00047671,120]
[354701637,1740628265509,-681.54,0.00047671,120]
[354701638,1740628265518,-2023.72,0.00047671,120]
[354701639,1740628265528,-922.98,0.00047671,120]
[354701640,1740628265537,-500.0,0.00047671,120]
[354701641,1740628265547,-941.41,0.00047671,120]
[354701642,1740628265556,-500.0,0.00047671,120]
[354701643,1740628265565,-577.23,0.00047671,120]
[354701644,1740628265574,-500.0,0.00047671,120]
[354701645,1740628265583,-503.15,0.00047671,120]
[354701646,1740628265594,-1260.11,0.00047671,120]
[354701647,1740628265603,-28610.81,0.00047671,6]
[354701648,1740628265614,-500.0,0.00047671,120]
[354701649,1740628265623,-500.0,0.00047671,120]
[354701650,1740628265633,-2143.37,0.00047671,120]
[354701651,1740628265642,-40083.14,0.00047671,120]
[354701652,1740628265652,-18029.97,0.00047671,120]
[354701653,1740628265661,-7683.19,0.00047671,120]
[354701654,1740628265670,-500.0,0.00047671,120]
[354701655,1740628265680,-162.0,0.00047682,90]
[354701656,1740628265689,-625.19351101,0.00047795,120]
[354701657,1740628265698,-500.0,0.00047817,2]
[354701658,1740628265707,-232.89254,0.000479,120]
[354701659,1740628265717,-6880.52,0.000479,30]
[354701660,1740628265726,-1145.03,0.000479,30]
[354701661,1740628265735,-9455.75,0.000479,30]
[354701662,1740628265745,-1802.0,0.00047945,30]
[354701663,1740628265754,-500.0,0.00047945,30]
[354701664,1740628265763,-203.12117875,0.00047945,30]
[354701665,1740628265773,-500.0,0.00047945,30]
[354701666,1740628265787,-500.0,0.00047945,30]
[354701667,1740628265797,-150.35,0.00047945,30]
[354701668,1740628265806,-500.0,0.00047945,120]
[354701669,1740628265819,-593.15,0.00047945,120]
[354701670,1740628265828,-500.0,0.00047945,120]
[354701671,1740628265838,-500.0,0.00047945,120]
[354701672,1740628265849,-570.65,0.00047945,120]
[354701673,1740628265858,-780.41,0.00047945,120]
[354701674,1740628265867,-566.38,0.00047945,120]
[354701675,1740628265876,-500.0,0.00047945,120]
[354701676,1740628265886,-500.0,0.00047945,120]
[354701677,1740628265895,-797.05,0.00047945,120]
[354701678,1740628265905,-500.0,0.00047945,120]
[354701679,1740628265914,-500.0,0.00047945,120]
[354701680,1740628265923,-500.0,0.00047945,120]
[354701681,1740628265932,-500.0,0.00047945,120]
[354701682,1740628265941,-500.0,0.00047945,120]
[354701683,1740628265951,-768.39,0.00047945,120]
[354701684,1740628265960,-500.0,0.00047945,120]
[354701685,1740628265969,-827.32,0.00047945,120]
[354701686,1740628265979,-1418.83,0.00047945,120]
[354701687,1740628265988,-500.0,0.00047945,120]
[354701688,1740628265997,-852.35,0.00047945,120]
[354701689,1740628266008,-500.0,0.00047945,120]
[354701690,1740628266017,-500.0,0.00047945,120]
[354701691,1740628266027,-500.0,0.00047945,120]
[354701692,1740628266036,-500.0,0.00047945,120]
[354701693,1740628266046,-560.69,0.00047945,120]
[354701694,1740628266055,-500.0,0.00047945,120]
[354701695,1740628266064,-949.2,0.00047945,120]
[354701696,1740628266074,-500.0,0.00047945,120]
[354701697,1740628266084,-524.86,0.00047945,120]
[354701698,1740628266094,-500.0,0.00047945,120]
[354701699,1740628266103,-500.0,0.00047945,120]
[354701700,1740628266112,-500.0,0.00047945,120]
[354701701,1740628266121,-934.32,0.00047945,120]
[354701702,1740628266130,-958.18,0.00047945,120]
[354701703,1740628266139,-572.69,0.00047945,120]
[354701704,1740628266148,-632.92,0.00047945,120]
[354701705,1740628266157,-1164.98,0.00047945,120]
[354701706,1740628266166,-710.62,0.00047945,120]
[354701707,1740628266175,-1692.42,0.00047945,120]
[354701708,1740628266184,-854.19,0.00047945,120]
[354701709,1740628266193,-500.0,0.00047945,120]
[354701710,1740628266202,-500.0,0.00047945,120]
[354701711,1740628266211,-1073.14,0.00047945,120]
[354701712,1740628266221,-813.29,0.00047945,120]
[354701713,1740628266230,-500.0,0.00047945,120]
[354701714,1740628266239,-500.0,0.00047945,120]
[354701715,1740628266248,-785.56,0.00047945,120]
[354701716,1740628266257,-927.55,0.00047945,120]
[354701717,1740628266267,-1218.01,0.00047945,120]
[354701718,1740628266276,-500.0,0.00047945,120]
[354701719,1740628266284,-822.03,0.00047945,120]
[354701720,1740628266294,-751.57,0.00047945,120]
[354701721,1740628266303,-897.58,0.00047945,120]
[354701722,1740628266313,-1602.4,0.00047945,120]
[354701723,1740628266322,-755.76,0.00047945,120]
[354701724,1740628266331,-2936.95,0.00047945,120]
[354701725,1740628266340,-500.0,0.00047945,120]
[354701726,1740628266352,-500.0,0.00047945,120]
[354701727,1740628266362,-500.0,0.00047945,120]
[354701728,1740628266371,-500.0,0.00047945,120]
[354701729,1740628266381,-690.81,0.00047945,120]
[354701730,1740628266394,-2038.67,0.00047945,120]
[354701731,1740628266404,-500.0,0.00047945,120]
[354701732,1740628266413,-500.0,0.00047945,120]
[354701733,1740628266424,-500.0,0.00047945,120]
[354701734,1740628266434,-3236.64,0.00047945,120]
[354701735,1740628266541,-500.0,0.00047945,120]
[354701736,1740628266556,-500.0,0.00047945,120]
[354701737,1740628266575,-969.61,0.00047945,120]
[354701738,1740628266586,-543.74,0.00047945,120]
[354701739,1740628266596,-2040.43,0.00047945,120]
[354701740,1740628266607,-500.0,0.00047945,120]
[354701741,1740628266616,-658.16,0.00047945,120]
[354701742,1740628266626,-3045.52,0.00047945,120]
[354701743,1740628266635,-584.76,0.00047945,120]
[354701744,1740628266645,-500.0,0.00047945,120]
[354701745,1740628266654,-500.0,0.00047945,120]
[354701746,1740628266664,-4367.33,0.00047945,120]
[354701747,1740628266674,-1365.33,0.00047945,120]
[354701748,1740628266683,-500.0,0.00047945,120]
[354701749,1740628266693,-1534.47,0.00047945,120]
[354701750,1740628266703,-1512.89,0.00047945,120]
[354701751,1740628266712,-500.0,0.00047945,120]
[354701752,1740628266722,-689.11,0.00047945,120]
[354701753,1740628266731,-877.5,0.00047945,120]
[354701754,1740628266742,-2559.48,0.00047945,120]
[354701755,1740628266751,-500.0,0.00047945,120]
[354701756,1740628266761,-685.48,0.00047945,120]
[354701757,1740628266770,-715.45,0.00047945,120]
[354701758,1740628266781,-1386.85,0.00047945,120]
[354701759,1740628266793,-500.0,0.00047945,120]
[354701760,1740628266802,-624.46,0.00047945,120]
[354701761,1740628266813,-627.78,0.00047945,120]
[354701762,1740628266823,-725.02,0.00047945,120]
[354701763,1740628266833,-1947.97,0.00047945,120]
[354701764,1740628266845,-500.0,0.00047945,120]
[354701765,1740628266855,-1773.59,0.00047945,120]
[354701766,1740628266866,-500.0,0.00047945,120]
[354701767,1740628266875,-1783.55,0.00047945,120]
[354701768,1740628266885,-748.91,0.00047945,120]
[354701769,1740628266894,-500.0,0.00047945,120]
[354701770,1740628266904,-3613.6,0.00047945,120]
[354701771,1740628266913,-500.0,0.00047945,120]
[354701772,1740628266923,-447.39748133,0.00047945,120]
[354701773,1740628266932,-881.2,0.00047945,120]
[354701774,1740628266941,-1733.96,0.00047945,120]
[354701775,1740628266952,-500.0,0.00047945,120]
[354701776,1740628266961,-686.53,0.00047945,120]
[354701777,1740628266970,-500.0,0.00047945,120]
[354701778,1740628266980,-524.21,0.00047945,120]
[354701779,1740628266989,-1543.48,0.00047945,120]
[354701780,1740628267000,-500.0,0.00047945,120]
[354701781,1740628267010,-524.27,0.00047945,120]
[354701782,1740628267019,-500.0,0.00047945,120]
[354701783,1740628267028,-1270.7,0.00047945,120]
[354701784,1740628267038,-1474.69,0.00047945,120]
[354701785,1740628267047,-510.06937238,0.00047945,120]
[354701786,1740628267057,-772.19,0.00047945,120]
[354701787,1740628267067,-823.67,0.00047945,120]
[354701788,1740628267076,-500.0,0.00047945,120]
[354701789,1740628267086,-1328.16,0.00047945,120]
[354701790,1740628267096,-2621.87,0.00047945,120]
[354701791,1740628267105,-2850.7,0.00047945,120]
[354701792,1740628267115,-500.0,0.00047945,120]
[354701793,1740628267124,-2280.7,0.00047945,120]
[354701794,1740628267133,-1028.4,0.00047945,120]
[354701795,1740628267143,-947.89,0.00047945,120]
[354701796,1740628267152,-645.66,0.00047945,120]
[354701797,1740628267161,-500.0,0.00047945,120]
[354701798,1740628267170,-806.86,0.00047945,120]
[354701799,1740628267180,-868.62,0.00047945,120]
[354701800,1740628267189,-500.0,0.00047945,120]
[354701801,1740628267198,-500.0,0.00047945,120]
[354701802,1740628267207,-500.0,0.00047945,120]
[354701803,1740628267216,-741.48,0.00047945,120]
[354701804,1740628267226,-500.0,0.00047945,120]
[354701805,1740628267235,-525.65,0.00047945,120]
[354701806,1740628267245,-598.57,0.00047945,120]
[354701807,1740628267254,-691.43,0.00047945,120]
[354701808,1740628267264,-1395.46,0.00047945,120]
[354701809,1740628267273,-500.0,0.00047945,120]